[Event "GER-ch Blitz 2019"]
[Site "Magdeburg"]
[Date "2019.05.25"]
[Round "13.12"]
[White "Schulz, Karsten"]
[Black "Kopylov, Daniel"]
[Result "1-0"]
[ECO "A06"]
[WhiteElo "2227"]
[BlackElo "2263"]
[Annotator "NA"]
[PlyCount "103"]
[EventDate "2019.05.25"]
[EventType "tourn"]
[EventCountry "GER"]
[Tiebreak "Number of wins+Number of black wins"]
[SourceTitle "playchess.com"]
[Source "ChessBase"]
[SourceQuality "1"]
[TimeControl "180+2"]

1. Nf3 {[%emt 0:00:00]} d5 {[%emt 0:00:00]} 2. c4 {[%emt 0:00:01]} c6 {[%emt 0:
00:02]} 3. g3 {[%emt 0:00:01]} Nf6 {[%emt 0:00:02]} 4. Bg2 {[%emt 0:00:01]} g6
{[%emt 0:00:01]} 5. b3 {[%emt 0:00:01]} Bg7 {[%emt 0:00:02]} 6. Bb2 {[%emt 0:
00:00]} O-O {[%emt 0:00:02]} 7. O-O {[%emt 0:00:03]} c5 {[%emt 0:00:44]} 8.
cxd5 {[%emt 0:00:08]} Nxd5 {[%emt 0:00:01]} 9. Bxg7 {[%emt 0:00:02]} Kxg7 {
[%emt 0:00:01]} 10. d4 {[%emt 0:00:02]} cxd4 {[%emt 0:00:22]} 11. Qxd4+ {
[%emt 0:00:01]} Nf6 {[%emt 0:00:02]} 12. Nc3 {[%emt 0:00:09]} Nc6 {[%emt 0:00:
05]} 13. Qxd8 {[%emt 0:00:21]} Rxd8 {[%emt 0:00:01]} 14. Rfd1 {[%emt 0:00:01]}
Bg4 {[%emt 0:00:13]} 15. h3 {[%emt 0:00:05]} Bxf3 {[%emt 0:00:05]} 16. Bxf3 {
[%emt 0:00:01]} Rac8 {[%emt 0:00:03]} 17. Bxc6 {[%emt 0:00:37]} Rxd1+ {[%emt 0:
00:06]} 18. Rxd1 {[%emt 0:00:02]} Rxc6 {[%emt 0:00:01]} 19. Rd3 {[%emt 0:00:01]
} a6 {[%emt 0:00:10]} 20. Kg2 {[%emt 0:00:06]} e6 {[%emt 0:00:14]} 21. f4 {
[%emt 0:00:07]} h6 {[%emt 0:00:11]} 22. Kf3 {[%emt 0:00:02]} g5 {[%emt 0:00:07]
} 23. e4 {[%emt 0:00:07]} b5 {[%emt 0:00:14]} 24. e5 {[%emt 0:00:05]} Ng8 {
[%emt 0:00:01]} 25. Ne4 {[%emt 0:00:06]} gxf4 {[%emt 0:00:05]} 26. gxf4 {
[%emt 0:00:06]} Rc2 {[%emt 0:00:01]} 27. Rd7 {[%emt 0:00:07]} h5 {[%emt 0:00:
14]} 28. Ng5 {[%emt 0:00:06]} Rc3+ {[%emt 0:00:17]} 29. Ke4 {[%emt 0:00:19]}
Nh6 {[%emt 0:00:05]} 30. Nxe6+ {[%emt 0:00:05]} Kg6 {[%emt 0:00:02]} 31. Nd4 {
[%emt 0:00:11]} Rxh3 {[%emt 0:00:09]} 32. Rd6+ {[%emt 0:00:17]} Kg7 {[%emt 0:
00:00]} 33. Rxa6 {[%emt 0:00:03]} Ng4 {[%emt 0:00:01]} 34. Nf5+ {[%emt 0:00:04]
} Kg8 {[%emt 0:00:03]} 35. Nh6+ {[%emt 0:00:11]} Nxh6 {[%emt 0:00:02]} 36. Rxh6
{[%emt 0:00:01]} Rh2 {[%emt 0:00:03]} 37. a4 {[%emt 0:00:05]} bxa4 {[%emt 0:00:
01]} 38. bxa4 {[%emt 0:00:00]} Ra2 {[%emt 0:00:01]} 39. Rxh5 {[%emt 0:00:03]}
Rxa4+ {[%emt 0:00:02]} 40. Kf5 {[%emt 0:00:01]} Ra1 {[%emt 0:00:02]} 41. Rg5+ {
[%emt 0:00:02]} Kf8 {[%emt 0:00:01]} 42. Rg3 {[%emt 0:00:00]} Rb1 {[%emt 0:00:
04]} 43. Rd3 {[%emt 0:00:02]} Ra1 {[%emt 0:00:02]} 44. Kf6 {[%emt 0:00:04]}
Ra6+ {[%emt 0:00:01]} 45. Rd6 {[%emt 0:00:01]} Ra8 {[%emt 0:00:01]} 46. f5 {
[%emt 0:00:04]} Ke8 {[%emt 0:00:03]} 47. Rc6 {[%emt 0:00:03]} Rb8 {[%emt 0:00:
01]} 48. Ra6 {[%emt 0:00:02]} Rc8 {[%emt 0:00:02]} 49. Ra7 {[%emt 0:00:08]}
Rc6+ {[%emt 0:00:04]} 50. e6 {[%emt 0:00:02]} fxe6 {[%emt 0:00:02]} 51. fxe6 {
[%emt 0:00:01]} Rc8 {[%emt 0:00:17]} 52. Rh7 {[%emt 0:00:03]} 1-0

[Event "GER-ch Blitz 2019"]
[Site "Magdeburg"]
[Date "2019.05.25"]
[Round "13.13"]
[White "Schmaltz, Roland"]
[Black "Stern, Rene"]
[Result "1-0"]
[ECO "C65"]
[WhiteElo "2461"]
[BlackElo "2538"]
[Annotator "ChessBase"]
[PlyCount "69"]
[EventDate "2019.05.25"]
[EventType "tourn"]
[EventCountry "GER"]
[Tiebreak "Number of wins+Number of black wins"]
[SourceTitle "playchess.com"]
[Source "ChessBase"]
[SourceQuality "1"]
[TimeControl "180+2"]

1. e4 {[%emt 0:00:00]} e5 {[%emt 0:00:00]} 2. Nf3 {[%emt 0:00:00]} Nc6 {
[%emt 0:00:00]} 3. Bb5 {[%emt 0:00:00]} Nf6 {[%emt 0:00:02]} 4. d3 {[%emt 0:00:
00]} d6 {[%emt 0:00:02]} 5. c3 {[%emt 0:00:03]} Be7 {[%emt 0:00:01]} 6. Nbd2 {
[%emt 0:00:03]} O-O {[%emt 0:00:01]} 7. O-O {[%emt 0:00:01]} a6 {[%emt 0:00:02]
} 8. Ba4 {[%emt 0:00:01]} Re8 {[%emt 0:00:02]} 9. Re1 {[%emt 0:00:01]} Bf8 {
[%emt 0:00:00]} 10. Nf1 {[%emt 0:00:04]} h6 {[%emt 0:00:04]} 11. h3 {[%emt 0:
00:02]} b5 {[%emt 0:00:02]} 12. Bb3 {[%emt 0:00:01]} Na5 {[%emt 0:00:04]} 13.
Bc2 {[%emt 0:00:01]} c5 {[%emt 0:00:01]} 14. Ne3 {[%emt 0:00:06]} Bb7 {[%emt 0:
00:01]} 15. Nh2 {[%emt 0:00:14]} Nc6 {[%emt 0:00:03]} 16. Nhg4 {[%emt 0:00:03]}
Nxg4 {[%emt 0:00:05]} 17. hxg4 {[%emt 0:00:02]} Ne7 {[%emt 0:00:04]} 18. Qf3 {
[%emt 0:00:08]} d5 {[%emt 0:00:03]} 19. exd5 {[%emt 0:00:06]} Nxd5 {[%emt 0:00:
03]} 20. Bb3 {[%emt 0:00:07]} e4 {[%emt 0:00:30]} 21. dxe4 {[%emt 0:00:21]} c4
{[%emt 0:00:01]} 22. Bc2 {[%emt 0:00:08]} Ne7 {[%emt 0:00:50]} 23. Rd1 {
[%emt 0:00:10]} Qc7 {[%emt 0:00:03]} 24. Nd5 {[%emt 0:00:09]} Nxd5 {[%emt 0:00:
05]} 25. exd5 {[%emt 0:00:01]} Rad8 {[%emt 0:00:02]} 26. Be3 {[%emt 0:00:09]}
Qe5 {[%emt 0:00:29]} 27. Qh3 {[%emt 0:00:31]} Rxd5 {[%emt 0:00:38]} 28. g5 {
[%emt 0:00:10]} Bc8 {[%emt 0:00:13]} 29. Qh1 {[%emt 0:00:15]} Bg4 {[%emt 0:00:
14]} 30. Rxd5 {[%emt 0:00:13]} Qxd5 {[%emt 0:00:02]} 31. Qh4 {[%emt 0:00:05]}
h5 {[%emt 0:00:07]} 32. a4 {[%emt 0:00:10]} b4 33. cxb4 Bxb4 34. Qg3 g6 35. Qf4
1-0

[Event "GER-ch Blitz 2019"]
[Site "Magdeburg"]
[Date "2019.05.25"]
[Round "13.14"]
[White "Hirneise, Jens"]
[Black "Stein, Robert"]
[Result "1/2-1/2"]
[ECO "C77"]
[WhiteElo "2375"]
[BlackElo "2318"]
[Annotator "NA"]
[PlyCount "89"]
[EventDate "2019.05.25"]
[EventType "tourn"]
[EventCountry "GER"]
[Tiebreak "Number of wins+Number of black wins"]
[SourceTitle "playchess.com"]
[Source "ChessBase"]
[SourceQuality "1"]
[TimeControl "180+2"]

1. e4 {[%emt 0:00:00]} e5 {[%emt 0:00:00]} 2. Nf3 {[%emt 0:00:00]} Nc6 {
[%emt 0:00:00]} 3. Bb5 {[%emt 0:00:00]} a6 {[%emt 0:00:00]} 4. Ba4 {[%emt 0:00:
01]} Nf6 {[%emt 0:00:00]} 5. d4 {[%emt 0:00:01]} exd4 {[%emt 0:00:04]} 6. O-O {
[%emt 0:00:01]} d6 {[%emt 0:00:11]} 7. Nxd4 {[%emt 0:00:05]} Bd7 {[%emt 0:00:
01]} 8. Bxc6 {[%emt 0:00:02]} bxc6 {[%emt 0:00:03]} 9. Qf3 {[%emt 0:00:02]} c5
{[%emt 0:00:06]} 10. Nf5 {[%emt 0:00:02]} Bxf5 {[%emt 0:00:01]} 11. Qxf5 Be7
12. Nc3 {[%emt 0:00:24]} O-O {[%emt 0:00:09]} 13. Rd1 {[%emt 0:00:05]} Nd7 {
[%emt 0:00:09]} 14. Nd5 {[%emt 0:00:04]} Rb8 {[%emt 0:00:00]} 15. c3 {[%emt 0:
00:05]} Nb6 {[%emt 0:00:02]} 16. Nxe7+ {[%emt 0:00:26]} Qxe7 {[%emt 0:00:02]}
17. b3 {[%emt 0:00:04]} Rfe8 {[%emt 0:00:04]} 18. f3 {[%emt 0:00:01]} a5 {
[%emt 0:00:07]} 19. Bf4 {[%emt 0:00:33]} a4 {[%emt 0:00:02]} 20. b4 {[%emt 0:
00:09]} Nd7 {[%emt 0:00:36]} 21. a3 {[%emt 0:00:04]} g6 {[%emt 0:00:36]} 22.
Qg4 {[%emt 0:00:09]} Ne5 {[%emt 0:00:04]} 23. Qg3 {[%emt 0:00:16]} c4 {[%emt 0:
00:37]} 24. Bxe5 {[%emt 0:00:20]} dxe5 {[%emt 0:00:00]} 25. Rd5 {[%emt 0:00:01]
} c6 {[%emt 0:00:02]} 26. Rc5 {[%emt 0:00:05]} Qe6 {[%emt 0:00:22]} 27. Rd1 {
[%emt 0:00:07]} f6 {[%emt 0:00:02]} 28. h3 {[%emt 0:00:09]} Rbd8 {[%emt 0:00:
01]} 29. Rxd8 {[%emt 0:00:14]} Rxd8 {[%emt 0:00:00]} 30. Qg4 {[%emt 0:00:03]}
Qd6 {[%emt 0:00:07]} 31. Rxc4 {[%emt 0:00:04]} Kf7 {[%emt 0:00:10]} 32. Kh2 {
[%emt 0:00:04]} h5 {[%emt 0:00:02]} 33. Qg3 {[%emt 0:00:02]} Qe6 {[%emt 0:00:
04]} 34. Rc5 {[%emt 0:00:04]} Rd2 {[%emt 0:00:02]} 35. Qe1 {[%emt 0:00:04]} Qa2
{[%emt 0:00:02]} 36. Qg1 {[%emt 0:00:04]} Qxa3 {[%emt 0:00:02]} 37. Rxc6 {
[%emt 0:00:02]} Rd7 {[%emt 0:00:16]} 38. Qc5 {[%emt 0:00:05]} Qb3 {[%emt 0:00:
02]} 39. Rc7 {[%emt 0:00:05]} Rxc7 40. Qxc7+ {[%emt 0:00:01]} Kg8 {[%emt 0:00:
01]} 41. Qd8+ {[%emt 0:00:05]} Kg7 {[%emt 0:00:01]} 42. Qc7+ {[%emt 0:00:02]}
Kh6 {[%emt 0:00:01]} 43. Qc8 {[%emt 0:00:02]} Kg7 {[%emt 0:00:03]} 44. Qc7+ {
[%emt 0:00:01]} Kh6 {[%emt 0:00:01]} 45. Qc8 {[%emt 0:00:01]} 1/2-1/2

[Event "GER-ch Blitz 2019"]
[Site "Magdeburg"]
[Date "2019.05.25"]
[Round "13.15"]
[White "Zuyev, Igor"]
[Black "Frischmann, Rick"]
[Result "1-0"]
[ECO "B23"]
[WhiteElo "2447"]
[BlackElo "2320"]
[Annotator "NA"]
[PlyCount "73"]
[EventDate "2019.05.25"]
[EventType "tourn"]
[EventCountry "GER"]
[Tiebreak "Number of wins+Number of black wins"]
[SourceTitle "playchess.com"]
[Source "ChessBase"]
[SourceQuality "1"]
[TimeControl "180+2"]

1. e4 {[%emt 0:00:00]} c5 {[%emt 0:00:00]} 2. Nc3 {[%emt 0:00:00]} Nc6 {
[%emt 0:00:00]} 3. f4 {[%emt 0:00:01]} d6 {[%emt 0:00:01]} 4. Nf3 {[%emt 0:00:
02]} g6 {[%emt 0:00:01]} 5. Bb5 {[%emt 0:00:09]} Bd7 {[%emt 0:00:01]} 6. O-O {
[%emt 0:00:06]} Bg7 {[%emt 0:00:01]} 7. d3 {[%emt 0:00:04]} Nf6 {[%emt 0:00:12]
} 8. Qe1 {[%emt 0:00:06]} a6 {[%emt 0:00:20]} 9. Bxc6 {[%emt 0:00:05]} Bxc6 {
[%emt 0:00:02]} 10. Bd2 {[%emt 0:00:04]} b5 {[%emt 0:00:02]} 11. a3 {[%emt 0:
00:06]} O-O {[%emt 0:00:13]} 12. b4 {[%emt 0:00:05]} cxb4 {[%emt 0:00:44]} 13.
axb4 {[%emt 0:00:03]} a5 {[%emt 0:00:06]} 14. Rxa5 {[%emt 0:00:06]} Rxa5 {
[%emt 0:00:01]} 15. bxa5 {[%emt 0:00:02]} Qxa5 {[%emt 0:00:11]} 16. Nd5 {
[%emt 0:00:06]} Qd8 {[%emt 0:00:05]} 17. Nb4 {[%emt 0:00:06]} Bd7 {[%emt 0:00:
17]} 18. h3 {[%emt 0:00:06]} Ne8 {[%emt 0:00:09]} 19. d4 {[%emt 0:00:07]} Nc7 {
[%emt 0:00:16]} 20. Qe3 {[%emt 0:00:30]} Qc8 {[%emt 0:00:05]} 21. Rb1 {[%emt 0:
00:07]} Re8 {[%emt 0:00:01]} 22. Ra1 {[%emt 0:00:06]} Qb7 {[%emt 0:00:03]} 23.
Qd3 {[%emt 0:00:05]} Ne6 {[%emt 0:00:04]} 24. Ra2 {[%emt 0:00:13]} Rc8 {
[%emt 0:00:01]} 25. f5 {[%emt 0:00:06]} gxf5 {[%emt 0:00:12]} 26. exf5 {
[%emt 0:00:04]} Nc7 {[%emt 0:00:01]} 27. d5 {[%emt 0:00:07]} Ne8 {[%emt 0:00:
05]} 28. g4 {[%emt 0:00:07]} Rc4 {[%emt 0:00:02]} 29. Qe2 {[%emt 0:00:05]} Kf8
{[%emt 0:00:05]} 30. Qf2 {[%emt 0:00:09]} h5 {[%emt 0:00:10]} 31. Ra7 {[%emt 0:
00:06]} Qc8 {[%emt 0:00:01]} 32. gxh5 {[%emt 0:00:08]} Bxf5 {[%emt 0:00:06]}
33. Nc6 {[%emt 0:00:06]} Rxc6 {[%emt 0:00:04]} 34. dxc6 {[%emt 0:00:03]} Qxc6 {
[%emt 0:00:00]} 35. Bg5 {[%emt 0:00:11]} Bf6 {[%emt 0:00:22]} 36. Bxf6 {
[%emt 0:00:08]} Nxf6 {[%emt 0:00:00]} 37. Nd4 {[%emt 0:00:06]} 1-0

[Event "GER-ch Blitz 2019"]
[Site "Magdeburg"]
[Date "2019.05.25"]
[Round "14.1"]
[White "Wichmann, Cliff"]
[Black "Gustafsson, Jan"]
[Result "0-1"]
[ECO "D02"]
[WhiteElo "2280"]
[BlackElo "2639"]
[Annotator "ChessBase"]
[PlyCount "67"]
[EventDate "2019.05.25"]
[EventType "tourn"]
[EventCountry "GER"]
[Tiebreak "Number of wins+Number of black wins"]
[SourceTitle "playchess.com"]
[Source "ChessBase"]
[SourceQuality "1"]
[TimeControl "180+2"]

1. Nf3 {[%emt 0:00:00]} d5 {[%emt 0:00:00]} 2. d4 {[%emt 0:00:01]} Nf6 {
[%emt 0:00:00]} 3. Bf4 {[%emt 0:00:02]} c5 {[%emt 0:00:02]} 4. c3 {[%emt 0:00:
01]} Nc6 {[%emt 0:00:01]} 5. e3 {[%emt 0:00:02]} Qb6 {[%emt 0:00:01]} 6. Qc1 {
[%emt 0:00:03]} Bf5 {[%emt 0:00:09]} 7. Be2 {[%emt 0:00:02]} e6 {[%emt 0:00:03]
} 8. O-O {[%emt 0:00:02]} Rc8 {[%emt 0:00:04]} 9. Nbd2 {[%emt 0:00:08]} h6 {
[%emt 0:00:04]} 10. Ne5 {[%emt 0:00:08]} cxd4 {[%emt 0:00:06]} 11. cxd4 {
[%emt 0:00:05]} Be7 {[%emt 0:00:07]} 12. Bd3 {[%emt 0:01:25]} O-O {[%emt 0:00:
04]} 13. Nxc6 {[%emt 0:00:18]} Rxc6 {[%emt 0:00:02]} 14. Qb1 {[%emt 0:00:01]}
Bxd3 {[%emt 0:00:10]} 15. Qxd3 {[%emt 0:00:05]} Rfc8 {[%emt 0:00:22]} 16. Nb3 {
[%emt 0:00:16]} a5 {[%emt 0:00:07]} 17. a4 {[%emt 0:00:13]} Qb4 {[%emt 0:00:15]
} 18. Qb5 {[%emt 0:00:12]} Rb6 {[%emt 0:00:09]} 19. Qxb4 {[%emt 0:00:04]} Rxb4
{[%emt 0:00:06]} 20. Nc5 {[%emt 0:00:07]} Bxc5 {[%emt 0:00:24]} 21. dxc5 {
[%emt 0:00:02]} Ne4 {[%emt 0:00:05]} 22. Rfc1 {[%emt 0:00:07]} Rxb2 {[%emt 0:
00:10]} 23. f3 {[%emt 0:00:04]} Nxc5 {[%emt 0:00:11]} 24. Be5 {[%emt 0:00:04]}
Rb4 {[%emt 0:00:09]} 25. Bd4 {[%emt 0:00:06]} Rc4 {[%emt 0:00:09]} 26. Rcb1 {
[%emt 0:00:05]} Rc7 {[%emt 0:00:16]} 27. Rb5 {[%emt 0:00:04]} Nxa4 {[%emt 0:00:
06]} 28. Rxa5 {[%emt 0:00:02]} Nc3 {[%emt 0:00:04]} 29. Kf2 {[%emt 0:00:02]} f6
{[%emt 0:00:03]} 30. Re1 Kf7 31. Ra3 b5 32. Bxc3 Rxc3 33. Rxc3 Rxc3 34. Rb1 0-1

[Event "GER-ch Blitz 2019"]
[Site "Magdeburg"]
[Date "2019.05.25"]
[Round "14.2"]
[White "Feuerstack, Aljoscha"]
[Black "Koch, Thomas"]
[Result "0-1"]
[ECO "B22"]
[WhiteElo "2441"]
[BlackElo "2474"]
[Annotator "ChessBase"]
[PlyCount "122"]
[EventDate "2019.05.25"]
[EventType "tourn"]
[EventCountry "GER"]
[Tiebreak "Number of wins+Number of black wins"]
[SourceTitle "playchess.com"]
[Source "ChessBase"]
[SourceQuality "1"]
[TimeControl "180+2"]

1. e4 {[%emt 0:00:00]} c5 {[%emt 0:00:00]} 2. c3 {[%emt 0:00:00]} d5 {[%emt 0:
00:00]} 3. exd5 {[%emt 0:00:01]} Qxd5 {[%emt 0:00:00]} 4. d4 {[%emt 0:00:01]}
e6 {[%emt 0:00:01]} 5. Nf3 {[%emt 0:00:01]} Nf6 {[%emt 0:00:01]} 6. Na3 {
[%emt 0:00:01]} Qd8 {[%emt 0:00:01]} 7. Nc2 {[%emt 0:00:03]} Nc6 {[%emt 0:00:
03]} 8. Bd3 {[%emt 0:00:02]} Be7 {[%emt 0:00:01]} 9. O-O {[%emt 0:00:02]} O-O {
[%emt 0:00:02]} 10. Qe2 {[%emt 0:00:02]} b6 {[%emt 0:00:05]} 11. Bf4 {[%emt 0:
00:12]} Bb7 {[%emt 0:00:03]} 12. Rad1 {[%emt 0:00:04]} cxd4 {[%emt 0:00:06]}
13. Ncxd4 {[%emt 0:00:03]} Nxd4 {[%emt 0:00:10]} 14. Nxd4 {[%emt 0:00:09]} Qd5
{[%emt 0:00:08]} 15. f3 {[%emt 0:00:27]} Qc5 {[%emt 0:00:17]} 16. Kh1 {[%emt 0:
00:08]} Rad8 {[%emt 0:00:03]} 17. Be5 {[%emt 0:00:13]} Nd7 {[%emt 0:00:15]} 18.
Bg3 {[%emt 0:00:07]} Nf6 {[%emt 0:00:07]} 19. Rfe1 {[%emt 0:00:16]} Bd5 {
[%emt 0:00:09]} 20. a3 {[%emt 0:00:37]} Nh5 {[%emt 0:00:09]} 21. Be5 {[%emt 0:
00:29]} Bf6 {[%emt 0:00:03]} 22. f4 {[%emt 0:00:05]} g6 {[%emt 0:00:11]} 23.
Qg4 {[%emt 0:00:12]} Bxe5 {[%emt 0:00:20]} 24. Rxe5 {[%emt 0:00:01]} Ng7 {
[%emt 0:00:03]} 25. Rde1 {[%emt 0:00:01]} Qc7 {[%emt 0:00:06]} 26. Bb1 {
[%emt 0:00:12]} Rfe8 {[%emt 0:00:03]} 27. h3 {[%emt 0:00:01]} Qb7 {[%emt 0:00:
02]} 28. Kh2 {[%emt 0:00:01]} Qc7 {[%emt 0:00:06]} 29. Qg5 {[%emt 0:00:01]} Qe7
{[%emt 0:00:02]} 30. Qg4 {[%emt 0:00:03]} Qf6 {[%emt 0:00:02]} 31. Nf3 {
[%emt 0:00:03]} Bxf3 {[%emt 0:00:08]} 32. Qxf3 {[%emt 0:00:02]} Rd2 {[%emt 0:
00:01]} 33. R5e2 {[%emt 0:00:01]} Rxe2 {[%emt 0:00:03]} 34. Rxe2 {[%emt 0:00:
01]} Nh5 {[%emt 0:00:03]} 35. g3 {[%emt 0:00:01]} Rd8 {[%emt 0:00:01]} 36. Qe3
{[%emt 0:00:01]} Rd6 {[%emt 0:00:04]} 37. Bc2 {[%emt 0:00:01]} Qd8 {[%emt 0:00:
01]} 38. Qe5 {[%emt 0:00:01]} Rd2 {[%emt 0:00:03]} 39. Qe3 {[%emt 0:00:02]} Rd6
{[%emt 0:00:01]} 40. Qe5 {[%emt 0:00:01]} Nf6 {[%emt 0:00:01]} 41. Qe3 {
[%emt 0:00:05]} h5 {[%emt 0:00:03]} 42. Qf3 {[%emt 0:00:03]} Rd2 {[%emt 0:00:
02]} 43. Qg2 {[%emt 0:00:01]} Rd6 {[%emt 0:00:02]} 44. Qf3 {[%emt 0:00:01]} Qc7
{[%emt 0:00:02]} 45. Kg2 {[%emt 0:00:01]} Qd7 {[%emt 0:00:02]} 46. Qe3 {
[%emt 0:00:01]} Rd5 {[%emt 0:00:01]} 47. Bb3 {[%emt 0:00:01]} Rd3 {[%emt 0:00:
02]} 48. Qf2 {[%emt 0:00:01]} Qc6+ {[%emt 0:00:01]} 49. Kh2 {[%emt 0:00:02]}
Qb5 {[%emt 0:00:07]} 50. Bc2 {[%emt 0:00:03]} Rd6 {[%emt 0:00:03]} 51. Bb1 {
[%emt 0:00:01]} Qd7 {[%emt 0:00:02]} 52. Bc2 {[%emt 0:00:00]} Rd5 {[%emt 0:00:
04]} 53. Qe3 {[%emt 0:00:02]} Qd6 {[%emt 0:00:01]} 54. Bb3 {[%emt 0:00:01]} Rd3
{[%emt 0:00:02]} 55. Qf2 {[%emt 0:00:01]} h4 {[%emt 0:00:01]} 56. g4 {[%emt 0:
00:01]} Rg3 {[%emt 0:00:03]} 57. Rd2 {[%emt 0:00:02]} Ne4 {[%emt 0:00:09]} 58.
Rxd6 {[%emt 0:00:07]} Nxf2 {[%emt 0:00:01]} 59. f5 {[%emt 0:00:04]} Ne4 {
[%emt 0:00:05]} 60. Rd7 {[%emt 0:00:02]} Nc5 {[%emt 0:00:03]} 61. Bc4 {[%emt 0:
00:02]} Nxd7 0-1

[Event "GER-ch Blitz 2019"]
[Site "Magdeburg"]
[Date "2019.05.25"]
[Round "14.3"]
[White "Baskin, Robert"]
[Black "Voege, Tobias"]
[Result "0-1"]
[ECO "D00"]
[WhiteElo "2398"]
[BlackElo "2294"]
[Annotator "NA"]
[PlyCount "44"]
[EventDate "2019.05.25"]
[EventType "tourn"]
[EventCountry "GER"]
[Tiebreak "Number of wins+Number of black wins"]
[SourceTitle "playchess.com"]
[Source "ChessBase"]
[SourceQuality "1"]
[TimeControl "180+2"]

1. d4 {[%emt 0:00:00]} d5 {[%emt 0:00:00]} 2. Bf4 {[%emt 0:00:00]} Nc6 {
[%emt 0:00:00]} 3. Nf3 {[%emt 0:00:04]} Nf6 {[%emt 0:00:00]} 4. Nbd2 {[%emt 0:
00:02]} Bg4 {[%emt 0:00:01]} 5. e3 {[%emt 0:00:01]} e6 {[%emt 0:00:01]} 6. Be2
{[%emt 0:00:01]} Bd6 {[%emt 0:00:01]} 7. Bg3 {[%emt 0:00:01]} O-O {[%emt 0:00:
02]} 8. O-O {[%emt 0:00:02]} Ne7 {[%emt 0:00:01]} 9. c4 {[%emt 0:00:02]} c6 {
[%emt 0:00:01]} 10. Qb3 {[%emt 0:00:05]} Ne4 {[%emt 0:00:15]} 11. Rfd1 {
[%emt 0:00:15]} Nxg3 12. hxg3 {[%emt 0:00:04]} Rb8 {[%emt 0:00:16]} 13. e4 {
[%emt 0:00:02]} dxe4 {[%emt 0:00:11]} 14. Nxe4 {[%emt 0:00:02]} Bc7 {[%emt 0:
00:01]} 15. Rd2 {[%emt 0:00:04]} Ng6 {[%emt 0:00:13]} 16. Rad1 {[%emt 0:00:07]}
Qe7 {[%emt 0:00:01]} 17. Qe3 {[%emt 0:00:14]} f5 {[%emt 0:00:19]} 18. Nc5 {
[%emt 0:00:47]} f4 {[%emt 0:00:05]} 19. Qc3 {[%emt 0:00:11]} fxg3 {[%emt 0:00:
10]} 20. fxg3 {[%emt 0:00:00]} Bxg3 {[%emt 0:00:05]} 21. Ne5 {[%emt 0:00:10]}
Bf2+ {[%emt 0:00:08]} 22. Kf1 {[%emt 0:00:10]} Bxd4+ {[%emt 0:00:04]} 0-1

[Event "GER-ch Blitz 2019"]
[Site "Magdeburg"]
[Date "2019.05.25"]
[Round "14.4"]
[White "Braeuning, Rudolf Wilhelm"]
[Black "Buhmann, Rainer"]
[Result "0-1"]
[ECO "B13"]
[WhiteElo "2285"]
[BlackElo "2573"]
[Annotator "ChessBase"]
[PlyCount "86"]
[EventDate "2019.05.25"]
[EventType "tourn"]
[EventCountry "GER"]
[Tiebreak "Number of wins+Number of black wins"]
[SourceTitle "playchess.com"]
[Source "ChessBase"]
[SourceQuality "1"]
[TimeControl "180+2"]

1. e4 {[%emt 0:00:00]} c6 {[%emt 0:00:00]} 2. d4 {[%emt 0:00:01]} d5 {[%emt 0:
00:00]} 3. exd5 {[%emt 0:00:01]} cxd5 {[%emt 0:00:01]} 4. c4 {[%emt 0:00:01]}
Nf6 {[%emt 0:00:02]} 5. Nc3 {[%emt 0:00:01]} Nc6 {[%emt 0:00:02]} 6. Bg5 {
[%emt 0:00:01]} Ne4 {[%emt 0:00:04]} 7. cxd5 {[%emt 0:00:09]} Nxc3 {[%emt 0:00:
02]} 8. bxc3 {[%emt 0:00:01]} Qxd5 {[%emt 0:00:02]} 9. Nf3 {[%emt 0:00:04]} Bg4
{[%emt 0:00:02]} 10. Qb3 {[%emt 0:00:16]} Qxb3 {[%emt 0:00:05]} 11. axb3 {
[%emt 0:00:01]} Bxf3 {[%emt 0:00:03]} 12. gxf3 {[%emt 0:00:02]} e6 {[%emt 0:00:
02]} 13. Bb5 {[%emt 0:00:07]} Bd6 {[%emt 0:00:22]} 14. Ra6 {[%emt 0:01:03]} Kd7
{[%emt 0:00:17]} 15. Bxc6+ {[%emt 0:00:03]} bxc6 {[%emt 0:00:01]} 16. Kd2 {
[%emt 0:00:11]} Rhb8 {[%emt 0:00:04]} 17. b4 {[%emt 0:00:10]} Rb6 {[%emt 0:00:
01]} 18. Ra4 {[%emt 0:00:18]} Kc8 {[%emt 0:00:24]} 19. h3 {[%emt 0:00:09]} Kb7
{[%emt 0:00:02]} 20. Rha1 {[%emt 0:00:13]} Rb5 {[%emt 0:00:06]} 21. Be3 {
[%emt 0:00:02]} a6 {[%emt 0:00:03]} 22. Ke2 {[%emt 0:00:16]} Rh5 {[%emt 0:00:
04]} 23. Rh1 {[%emt 0:00:05]} Bc7 {[%emt 0:00:12]} 24. f4 {[%emt 0:00:12]} Rf5
{[%emt 0:00:02]} 25. Rg1 g6 {[%emt 0:00:05]} 26. Rg5 {[%emt 0:00:17]} Rf6 {
[%emt 0:00:12]} 27. Kf3 {[%emt 0:00:06]} h6 {[%emt 0:00:01]} 28. Rg4 {[%emt 0:
00:02]} Rf5 {[%emt 0:00:03]} 29. Ke4 {[%emt 0:00:02]} Rh5 {[%emt 0:00:02]} 30.
Rg3 {[%emt 0:00:01]} Rh4 {[%emt 0:00:03]} 31. Kf3 {[%emt 0:00:02]} Rd8 {
[%emt 0:00:01]} 32. Ra2 {[%emt 0:00:03]} Rd5 {[%emt 0:00:02]} 33. Ra1 {[%emt 0:
00:03]} Rf5 {[%emt 0:00:02]} 34. Ke2 Bxf4 {[%emt 0:00:02]} 35. Bxf4 {[%emt 0:
00:02]} Rhxf4 36. Rg2 Rf3 {[%emt 0:00:05]} 37. Rgg1 {[%emt 0:00:06]} Rxc3 {
[%emt 0:00:03]} 38. Ra4 {[%emt 0:00:00]} Rc2+ {[%emt 0:00:09]} 39. Ke3 {
[%emt 0:00:01]} Rcxf2 {[%emt 0:00:03]} 40. Rga1 {[%emt 0:00:01]} Kc7 {[%emt 0:
00:06]} 41. Rxa6 {[%emt 0:00:00]} Kd6 {[%emt 0:00:06]} 42. Ra8 {[%emt 0:00:01]}
R5f3+ {[%emt 0:00:01]} 43. Ke4 f5# 0-1